Cogmind - Beta 14 @@@ ROGUE MODE // 2024.09.07 @ 00:07:54 Player: Schmee Result: Destroyed by DAS Turret with DAS Cannon Performance ------------- Evolutions (1) 500 Regions Visited (5) 1000 Robots Destroyed (93) 465 Value Destroyed (2382) 2382 Prototype IDs (7) 140 Alien Tech Used (0) 0 Bonus (-67) -67 TOTAL SCORE: 4420 Bonus ------- High Alert Combat Kills 59 Friendly Fire -126 Cogmind --------- Core Integrity 0/400 Matter 300/300 Energy 303/310 System Corruption 0% Temperature Cool (3) Movement Walking (190) Ox1 Location -9/Exiles Parts ------- > --- POWER (1) -------- Reinforced Fission Core > --- PROPULSION (3) --- Aluminum Leg Aluminum Leg Advanced Myomer Leg > --- UTILITY (3) ------ Large Storage Unit Advanced Targeting Computer Hardened Medium Armor Plating > --- WEAPON (2) ------- 8R-AWN's Boregun Improved Light Cannon > --- INVENTORY (15) --- Deuterium Engine Light Nuclear Core Aluminum Leg Aluminum Leg Aluminum Leg Aluminum Leg Improved Heat Sink High-capacity Matter Pod (41) Structural Scanner Experimental Sensor Array Hardened Medium Armor Plating Improved Light Cannon Mini Grenade Launcher Peak State ------------ > --- POWER ------------ Reinforced Fission Core > --- PROPULSION ------- Aluminum Leg Aluminum Leg Advanced Myomer Leg > --- UTILITY ---------- Large Storage Unit Advanced Targeting Computer Hardened Medium Armor Plating > --- WEAPON ----------- 8R-AWN's Boregun Improved Light Cannon > --- INVENTORY -------- Deuterium Engine Light Nuclear Core Aluminum Leg Aluminum Leg Aluminum Leg Aluminum Leg Improved Heat Sink High-capacity Matter Pod Structural Scanner Experimental Sensor Array Hardened Medium Armor Plating Improved Light Cannon Mini Grenade Launcher [Rating: 38] Favorites ----------- Power Cooled Ion Engine Engine Cooled Ion Engine Power Core Light Nuclear Core Propulsion Light Treads Treads Light Treads Leg Aluminum Leg Wheel Armored Wheel Utility Large Storage Unit Device Improved Heat Sink Storage Large Storage Unit Processor Advanced Targeting Computer Protection Hardened Medium Armor Plating Weapon Improved Light Cannon Energy Gun EM Pulse Gun Energy Cannon Advanced Beam Cannon Ballistic Gun Light Assault Rifle Ballistic Cannon Improved Light Cannon Launcher Grenade Launcher Build | -11 -10 -10 -9 -9 -9 ------- Run | Yrd Mat Min Mat Min Exi Slots Evolved 2 | . . . 2 . . Power . | . . . . . . Propulsion 1 | . . . 1 . . Utility 1 | . . . 1 . . Weapon . | . . . . . . Parts Attached 89 | 1 18 11 38 3 18 Power 8 | . 2 1 4 . 1 Engine 5 | . . 1 4 . . Core 3 | . 2 . . . 1 Reactor . | . . . . . . Propulsion 28 | . 5 5 9 . 9 Treads 15 | . . 2 8 . 5 Leg 12 | . 5 3 . . 4 Wheel 1 | . . . 1 . . Hover . | . . . . . . Flight . | . . . . . . Utility 17 | 1 3 . 7 1 5 Device 7 | 1 1 . 4 1 . Storage 3 | . 1 . 1 . 1 Processor 2 | . 1 . . . 1 Hackware . | . . . . . . Protection 5 | . . . 2 . 3 Artifact . | . . . . . . Weapon 36 | . 8 5 18 2 3 Energy Gun 4 | . 1 2 1 . . Energy Cannon 1 | . . . 1 . . Ballistic Gun 9 | . 4 2 2 . 1 Ballistic Cannon 15 | . . . 12 1 2 Launcher 7 | . 3 1 2 1 . Special Weapon . | . . . . . . Impact Weapon . | . . . . . . Slashing Weapon . | . . . . . . Piercing Weapon . | . . . . . . Special Melee Weapon . | . . . . . . Unidentified Prototypes 7 | . . . 5 . 2 Corrupted Parts 1 | . . 1 . . . System Corruption 11 | . . 11 . . . Parts Lost 21 | . 1 5 3 . 12 Power 2 | . . 1 . . 1 Propulsion 9 | . . 1 1 . 7 Utility 5 | . 1 . 2 . 2 Weapon 5 | . . 3 . . 2 Highest Loss Streak 11 | . 1 4 3 . 11 To Critical Strikes 8 | . . . . . 8 Average Slot Usage (%) 94 | . 91 82 97 100 96 Engine 8 | . 2 13 11 11 7 Core 3 | . 11 . . . 3 Treads 20 | . . 18 32 33 20 Leg 10 | . 27 9 . . 10 Device 8 | . 6 . 11 11 8 Storage 11 | . 14 14 11 11 8 Protection 5 | . . . 8 11 11 Ballistic Gun 7 | . 20 10 . . 3 Ballistic Cannon 12 | . . . 20 21 18 Launcher 3 | . 6 11 . . . Peak Build Rating 38 | 7 10 9 21 20 38 Average Rating 15 | 6 8 7 17 19 24 On Entrance 11 | 6 7 9 8 20 20 Naked Turns . | . . . . . . Heaviest Build 59 | 11 30 30 45 45 59 Greatest Support 60 | 20 20 40 60 60 60 Greatest Overweight (x) 5 | . 2 1 . . 5 Average Overweight (x) . | . . . . . . Largest Inventory Capacity 15 | 8 15 15 15 15 15 Average Capacity 14 | 8 13 15 15 15 12 Most Carried 15 | 6 15 15 15 15 15 Average Carried 12 | 6 10 14 14 15 11 Final Capacity 15 | 8 15 15 15 15 15 Final Carried 15 | 6 15 15 15 15 13 Class Distribution -------------------- 86% | Mutant 13% | Scavenger-Mutant Dominant Class ---------------- Mutant | -10/Materials Mutant | -10/Mines Mutant | -9/Materials Mutant | -9/Mines Mutant | -9/Exiles Resources | -11 -10 -10 -9 -9 -9 ----------- Run | Yrd Mat Min Mat Min Exi Matter Collected 3439 | 238 563 433 1361 145 699 Remotely . | . . . . . . Salvage Created 2403 | 104 584 266 1196 234 19 Parts 147 | 5 39 16 77 10 . Haulers Intercepted 6 | . 2 . 4 . . Recyclers Shooed 4 | 1 . . 3 . . Parts Field Recycled . | . . . . . . Retrieved Matter . | . . . . . . Parts Self-Destructed . | . . . . . . Prevented . | . . . . . . Kills | -11 -10 -10 -9 -9 -9 ------- Run | Yrd Mat Min Mat Min Exi Combat Hostiles Destroyed 71 | . 14 8 32 11 6 Guns 9 | . 8 1 . . . Cannons 38 | . . . 29 3 6 AOE 23 | . 6 6 3 8 . Classes Destroyed 11 | 2 7 . 1 . 1 Worker 4 | . 3 1 . . . Builder 2 | . 1 . 1 . . Tunneler 2 | 2 . . . . . Hauler 6 | . 2 . 4 . . Recycler 7 | 1 1 1 3 1 . Operator 1 | . 1 . . . . Watcher 5 | . 1 . 4 . . Swarmer 19 | . 6 4 6 3 . Grunt 37 | . 8 4 17 8 . Sentry 9 | . . . 9 . . Assembled 5 | . . . . . 5 Best Kill Streak 8 | 2 5 4 8 4 5 Combat Bots Only 8 | . 5 3 8 3 5 Max Kills in Single Turn 2 | 1 2 2 2 2 1 Gunslinging . | . . . . . . Exploded 2 | . 2 1 2 2 . Melee . | . . . . . . Uniques/NPCs Destroyed 1 | . . . . . 1 8R-AWN (-9/Exiles) Combat | -11 -10 -10 -9 -9 -9 -------- Run | Yrd Mat Min Mat Min Exi Hostile Shots Fired 387 | . 49 44 136 21 137 Missed 109 | . 14 9 41 5 40 Damage Taken 4204 | . 445 498 1262 197 1802 Core 574 | . 71 57 148 37 261 Absorbed by Shields . | . . . . . . Regen/Repaired (Parts) 310 | . . . 310 . . Core Remaining (%) 74 | 100 . 48 . . . Volleys Fired 287 | 14 68 25 105 18 57 Largest 2 | 2 2 2 2 2 2 Hottest 80 | 40 40 80 78 78 78 Shots Fired 528 | 28 123 38 205 25 109 Gun 171 | 28 110 28 5 . . Cannon 318 | . . . 195 14 109 Launcher 39 | . 13 10 5 11 . Special . | . . . . . . Kinetic 467 | 28 110 6 200 14 109 Thermal . | . . . . . . Explosive 39 | . 13 10 5 11 . Electromagnetic 22 | . . 22 . . . Robot Hit Streak 18 | 11 18 10 13 4 16 Robot Miss Streak 5 | 4 3 1 4 3 5 Penetration Max . | . . . . . . Secondary Targets 2 | . 2 . . . . Max Gunslinging Chain 1 | . 1 . . . . Shots Hit Robots 332 | 17 75 26 132 8 74 Core Hits 158 | 6 44 17 53 20 18 Critical Kills . | . . . . . . Critical Parts Destroyed 1 | 1 . . . . . Critical Strikes 9 | 1 . . 4 1 3 Destroy 1 | 1 . . . . . Blast 8 | . . . 4 1 3 Melee Attacks . | . . . . . . Impact . | . . . . . . Slashing . | . . . . . . Piercing . | . . . . . . Sneak Attacks . | . . . . . . Combat Hostiles . | . . . . . . Follow-up Attacks . | . . . . . . Damage Inflicted 7910 | 149 1415 758 3050 974 1564 Guns 1050 | 149 576 300 25 . . Cannons 4479 | . . . 2742 173 1564 Explosions 2368 | . 835 456 276 801 . Melee . | . . . . . . Ramming 13 | . 4 2 7 . . Kinetic 5290 | 149 576 61 2767 173 1564 Thermal 368 | . . 150 . 218 . Explosive 2000 | . 835 306 276 583 . Electromagnetic 239 | . . 239 . . . Impact . | . . . . . . Slashing . | . . . . . . Piercing . | . . . . . . Highest Corruption 11 | . . 11 . . . Average Corruption 11 | . . 11 . . . Corruption Purged . | . . . . . . Corruption Blocked . | . . . . . . Effects 35 | . . 35 . . . Message Errors 8 | . . 8 . . . Matter Fused 13 | . . 13 . . . Heat Flow Errors 3 | . . 3 . . . Energy Discharges 4 | . . 4 . . . Data Loss (minor) 5 | . . 5 . . . Data Loss (major) 2 | . . 2 . . . Overload Shots . | . . . . . . Overflow Damage 75 | . 18 7 19 25 6 Projectiles 31 | . . . 19 6 6 Explosions 44 | . 18 7 . 19 . Melee . | . . . . . . Knockbacks 49 | . . . 20 1 28 Impact . | . . . . . . Kinetic 46 | . . . 19 1 26 Secondary 3 | . . . 1 . 2 Self-Inflicted Damage 133 | . 46 44 20 23 . Shots 8 | . 2 2 2 2 . Rammed 3 | . . 1 2 . . Targets Rammed 5 | . 2 1 2 . . Kicked 2 | . 2 . . . . Crushed . | . . . . . . Highest Temperature 222 | . 18 222 201 10 12 Average Temperature 49 | . 5 91 55 4 8 Received Heat Transfer 1132 | . 144 288 576 84 40 Siege Activations . | . . . . . . Robots Corrupted 1 | . . 1 . . . Combat Hostiles 1 | . . 1 . . . Parts Fried 3 | . . 3 . . . Impact Corruptions . | . . . . . . Robots Melted . | . . . . . . Combat Hostiles . | . . . . . . Parts Melted . | . . . . . . Heat Transferred 400 | . . 150 . 250 . Parts Sabotaged . | . . . . . . Parts Stolen . | . . . . . . Parts Stripped . | . . . . . . Power Chain Reactions . | . . . . . . Alert | -11 -10 -10 -9 -9 -9 ------- Run | Yrd Mat Min Mat Min Exi Peak Influence 687 | 15 290 266 449 687 . Initial 121 | . 9 . 5 121 . Average 207 | 9 92 91 283 490 . Maximum Alert Level 2 | . 1 1 2 2 . Low Security (%) 45 | 100 84 84 9 1 . Level 1 46 | . 15 15 83 34 . Level 2 8 | . . . 7 63 . Level 3 . | . . . . . . Level 4 . | . . . . . . Level 5 . | . . . . . . High Security . | . . . . . . Max Security . | . . . . . . Squads Dispatched 6 | . 3 . 3 . . Investigation 2 | . 1 . 1 . . Extermination . | . . . . . . Reinforcement 4 | . 2 . 2 . . Assault . | . . . . . . Garrison . | . . . . . . Intercept . | . . . . . . Searches Triggered . | . . . . . . Construction Impeded 1 | . . . 1 . . Haulers Reinforced . | . . . . . . Active Scanning Responses . | . . . . . . Cargo Convoy Interrupts . | . . . . . . Stealth | -11 -10 -10 -9 -9 -9 --------- Run | Yrd Mat Min Mat Min Exi Distress Signals 7 | . 2 . 5 . . Communications Jammed . | . . . . . . Distress Signals . | . . . . . . Times Spotted 104 | . 33 8 45 11 7 Peak Tracking Total 8 | . 8 3 5 3 8 Tactical Retreats 1 | . . . . . 1 Traps | -11 -10 -10 -9 -9 -9 ------- Run | Yrd Mat Min Mat Min Exi Traps Triggered 7 | . 5 . 2 . . Indirectly . | . . . . . . Trap Hack Attempts . | . . . . . . Triggered . | . . . . . . Disarmed . | . . . . . . Reprogrammed . | . . . . . . Reused . | . . . . . . Traps Extracted . | . . . . . . Installed . | . . . . . . Triggered . | . . . . . . Machines | -11 -10 -10 -9 -9 -9 ---------- Run | Yrd Mat Min Mat Min Exi Machines Disabled 27 | . 3 4 1 15 4 Max in Single Turn 15 | . 1 2 1 15 1 Machines Repaired . | . . . . . . Machines Dismantled . | . . . . . . Machines Sabotaged . | . . . . . . Overloaded Fab Kills . | . . . . . . Hacking | -11 -10 -10 -9 -9 -9 --------- Run | Yrd Mat Min Mat Min Exi Machines Accessed 19 | . 7 . 12 . . Terminals 17 | . 7 . 10 . . Fabricators . | . . . . . . Repair Stations 2 | . . . 2 . . Recycling Units . | . . . . . . Scanalyzers . | . . . . . . Garrison Access . | . . . . . . Total Hacks 56 | . 20 . 36 . . Successful 29 | . 9 . 20 . . Failed 27 | . 11 . 16 . . Catastrophic . | . . . . . . Database Lockouts . | . . . . . . Manual 40 | . 19 . 20 . 1 Terminals 48 | . 20 . 28 . . Fabricators . | . . . . . . Repair Stations 8 | . . . 8 . . Recycling Units . | . . . . . . Scanalyzers . | . . . . . . Garrison Access . | . . . . . . Terminal Hacks 6 | . 2 . 4 . . Part Schematic 1 | . 1 . . . . Alert Level 1 | . . . 1 . . Unreport Threat 2 | . 1 . 1 . . Registered Prototypes 1 | . . . 1 . . Zone Layout 1 | . . . 1 . . Fabricator Hacks . | . . . . . . Repair Station Hacks 7 | . . . 7 . . Scan Component 4 | . . . 4 . . Repair 3 | . . . 3 . . Recycling Unit Hacks . | . . . . . . Scanalyzer . | . . . . . . Garrison Access Hacks . | . . . . . . Unauthorized Hacks 15 | . 7 . 8 . . Terminals 15 | . 7 . 8 . . Botnet 4 | . 2 . 2 . . Skim 11 | . 5 . 6 . . Fabricators . | . . . . . . Repair Stations . | . . . . . . Recycling Units . | . . . . . . Scanalyzers . | . . . . . . Garrison Access . | . . . . . . Data Cores Recovered . | . . . . . . Used . | . . . . . . Hacking Detections 15 | . 6 . 9 . . Full Trace Events 2 | . . . 2 . . Feedback Events . | . . . . . . Feedback Blocked . | . . . . . . Robot Schematics Acquired . | . . . . . . Robots Built . | . . . . . . Authchips . | . . . . . . Time . | . . . . . . Total Robot Build Rating . | . . . . . . Part Schematics Acquired 1 | . 1 . . . . Parts Built . | . . . . . . Authchips . | . . . . . . Time . | . . . . . . Total Part Build Rating . | . . . . . . Parts Repaired 3 | . . . 3 . . Time 90 | . . . 90 . . Parts Recycled . | . . . . . . Recycled Matter . | . . . . . . Retrieved Matter . | . . . . . . Retrieved Components . | . . . . . . Parts Scanalyzed . | . . . . . . Part Schematics Acquired . | . . . . . . Parts Damaged . | . . . . . . Bothacking | -11 -10 -10 -9 -9 -9 ------------ Run | Yrd Mat Min Mat Min Exi Used RIF Installer . | . . . . . . Robots Hacked . | . . . . . . Non-combat . | . . . . . . Combat . | . . . . . . Robot Hacks Applied . | . . . . . . Relay Couplers Released . | . . . . . . Fabnet Peak Effective % . | . . . . . . Robots Rewired . | . . . . . . Allies Hacked . | . . . . . . Hacks Repelled . | . . . . . . Allies | -11 -10 -10 -9 -9 -9 -------- Run | Yrd Mat Min Mat Min Exi Total Allies 3 | . . . . 3 . Largest Group 3 | . . . . 3 3 Highest-Rated Group 40 | . . . . 40 40 Highest-Rated Ally 16 | . . . . 16 16 Total Orders . | . . . . . . Ally Attacks 16 | . . . . . 16 Total Damage 21 | . . . . . 21 Kills . | . . . . . . Allies Corrupted . | . . . . . . Allies Melted . | . . . . . . Intel | -11 -10 -10 -9 -9 -9 ------- Run | Yrd Mat Min Mat Min Exi Robot Analysis Total . | . . . . . . Derelict Logs Recovered 2 | . . 1 . 1 . Drone Launches . | . . . . . . Drone Recoveries . | . . . . . . Exploration | -11 -10 -10 -9 -9 -9 ------------- Run | Yrd Mat Min Mat Min Exi Turns Passed 7721 | 92 2029 1009 2768 557 1266 Spaces Moved 3888 | 13 988 546 1396 312 633 Core 2 | . . . . . 2 Treads 2535 | . . 410 1396 312 417 Legs 1351 | 13 988 136 . . 214 Wheels . | . . . . . . Hover . | . . . . . . Flight . | . . . . . . Fastest Speed 120 | 120 120 160 160 160 120 Average Speed 166 | 120 176 167 160 160 166 Slowest Speed 300 | 120 260 190 160 160 300 Overloaded Moves . | . . . . . . Propulsion Burnouts . | . . . . . . Robots Hopped . | . . . . . . Cave-ins Triggered . | . . . . . . Exploration Rate (%) 68 | 3 95 96 87 62 70 Regions Visited 5 Branch Regions 3 Pre-discovered Areas 4 | . 1 1 1 1 . Known Exits Taken 1 | . . 1 . . . Unknown Exits Taken 4 | 1 1 . 1 1 . Scrap Searched 3 | . . 2 . 1 . Spaces Dug 7 | . 3 . 4 . . Terrain Destroyed 260 | . 72 55 31 95 7 Melee . | . . . . . . Projectile 18 | . . . 11 . 7 AOE 242 | . 72 55 20 95 . Terrain Rammed . | . . . . . . Walls Destroyed . | . . . . . . Machines Disabled . | . . . . . . Actions | -11 -10 -10 -9 -9 -9 --------- Run | Yrd Mat Min Mat Min Exi Total 4671 | 66 1169 606 1745 346 739 Wait 288 | 39 82 8 139 11 9 Move 3883 | 12 987 545 1395 311 633 Hop . | . . . . . . Pick Up 59 | . 8 9 26 1 15 Fast Attach 21 | 1 6 1 5 . 8 Attach 19 | . . 6 8 . 5 Detach 3 | . . . 3 . . Swap 49 | . 12 4 25 3 5 Drop 55 | . 4 7 37 2 5 Fire 287 | 14 68 25 105 18 57 Melee . | . . . . . . Ram . | . . . . . . Kick 2 | . 2 . . . . Crush 3 | . . 1 2 . . Escape Stasis . | . . . . . . Rewire 2 | . . . . . 2 Trap . | . . . . . . Miscellaneous . | . . . . . . Route ------- -11/Scrapyard -10/Materials (discovered 5 exits: *Mat x3 / [*Min] / Sub) -10/Mines (discovered 3 exits: *Mat x2 / Sub) -9/Materials (discovered 6 exits: [*Mat x3] / [*Min] / *Sto x2) -9/Mines (discovered 2 exits: [*Mat] / *Exi) -9/Exiles (discovered 1 exit: [*Min]) History --------- Turn | Location | Event 1 | -11/Scrapyard | Discovered new exit (range 2) 93 | -11/Scrapyard | Entered Materials 231 | -10/Materials | Discovered new exit (range 16) 316 | -10/Materials | Build established: Mutant 601 | -10/Materials | Discovered new exit (range 10) 914 | -10/Materials | Build established: Scavenger-Mutant 1128 | -10/Materials | Discovered new exit (range 4) 1319 | -10/Materials | Build established: Mutant 1367 | -10/Materials | Learned location of 1 exit from Storage 1440 | -10/Materials | Learned location of Subcaves (-10) 1502 | -10/Materials | Identified exit to Subcaves 1502 | -10/Materials | Identified exit to Materials 1502 | -10/Materials | Learned location of 1 exit from Materials 1598 | -10/Materials | Learned location of 2 exits from Mines 1715 | -10/Materials | Loaded intel: 8 terminal locations 2122 | -10/Materials | Entered Mines 2128 | -10/Mines | Met a Derelict bent on vengeance 2174 | -10/Mines | System corruption reached 10% 2195 | -10/Mines | Lost 4 parts (1p1n2w) 2363 | -10/Mines | Core integrity fell below 50% 2679 | -10/Mines | Found a damaged Exp. Sensor Array with a note attached 2697 | -10/Mines | Found Prototype Device 2773 | -10/Mines | Learned location of Storage (-9) 2815 | -10/Mines | Found DCF Scrap (12 items) 3107 | -10/Mines | Discovered exit to Materials (range 10) 3131 | -10/Mines | Entered Materials 3131 | -9/Materials | Evolved 2 slots: Propulsion x1, Utility x1 3132 | -9/Materials | Identified exit to Storage 3132 | -9/Materials | Identified Exp. Sensor Array 3347 | -9/Materials | Discovered new exit (range 9) 3408 | -9/Materials | Discovered new exit (range 3) 3589 | -9/Materials | Lost 3 parts (1n2u) 3595 | -9/Materials | Destroyed 8 combat bots 3746 | -9/Materials | Repaired Imp. Light Cannon 3817 | -9/Materials | Repaired Imp. Light Cannon 4414 | -9/Materials | Discovered exit to Storage (range 9) 4616 | -9/Materials | Discovered new exit (range 4) 4703 | -9/Materials | Repaired Grenade Launcher 5294 | -9/Materials | Discovered new exit (range 14) 5378 | -9/Materials | Learned location of 2 exits from Materials 5410 | -9/Materials | Loaded intel: 2 recycling unit locations 5433 | -9/Materials | Learned 8 Materials zone layouts 5492 | -9/Materials | Learned location of 2 exits from Materials 5531 | -9/Materials | Learned 2 Storage zone layouts 5899 | -9/Materials | Entered Mines 6240 | -9/Mines | Discovered new exit (range 9) 6261 | -9/Mines | Assisted by bots powering up and referring to "LRC-V3" 6326 | -9/Mines | Deemed a non-threat by the Exiles lab entrance 6328 | -9/Mines | Discovered new exit (range 5) 6390 | -9/Mines | Assembled infested the area 6456 | -9/Mines | Entered Exiles 6456 | -9/Exiles | Accompanied by 3 allies 6498 | -9/Exiles | Met 8R-AWN 6530 | -9/Exiles | Met EX-HEX 6620 | -9/Exiles | Met EX-DEC 6758 | -9/Exiles | Discovered new exit (range 15) 6899 | -9/Exiles | Met EX-BIN 7113 | -9/Exiles | Attacked by the Exiles 7131 | -9/Exiles | Core integrity fell below 50% 7161 | -9/Exiles | Lost 3 allies 7244 | -9/Exiles | Core integrity fell below 20% 7295 | -9/Exiles | Lost 11 parts (7n2u2w) 7308 | -9/Exiles | Destroyed 8R-AWN 7352 | -9/Exiles | Found Prototype Ballistic Gun 7352 | -9/Exiles | Identified 8R-AWN's Boregun 7722 | -9/Exiles | Destroyed by DAS Turret with DAS Cannon Last Messages --------------- 07433_ Acquired Lgt. Nuclear Core. 07434_ Acquired 8 matter. 07438_ Acquired 13 matter. 07440_ Acquired 15 matter. 07442_ Acquired 1 matter. 07445_ Acquired 8 matter. 07455_ Acquired 9 matter. 07459_ Acquired Aluminum Leg. 07460_ Acquired 4 matter. 07465_ Acquired 5 matter. 07469_ Acquired Imp. Light Cannon. 07472_ Acquired 2 matter. 07480_ Acquired 18 matter. 07487_ Acquired 4 matter. 07491_ Acquired 2 matter. 07584_ Connecting with BIN's Terminal... 07584_ Current location identified: Exiles 07632_ Connecting with EX-Vault Access... >>\\1234 Not this time, boltface! Map ----- +----------------------------------------------------+ | ???????????????????????????# #?#"""""""#?????? | | ???????????????????????????# #?#"""""""#?????? | | ??????????????????????????## ###"" """"#?????? | | #?????????????????????????#" """"#?????? | | #?????????????????????????#" """#?????? | | #?????????????????????????#" """#?????? | | #?????????????????????????#" """#?????? | | #????????????######???????#" """#?????? | | #??????????? """#???????#" """##????? | | #??????????#"" """#???????## """""????? | | #??????????#"" #????????# """##????? | | ???????????#"" #????????#" "X" """""????? | | ???????????#"" "#????????#" """ # ????? | | ???????????# ""#????????#" """""""""#?????? | | ##??????????"" ""#???????##" ###########?????? | | ##??????????# #????????##"" #???????????????? | | ######???### ###?######"" #???????????????? | | """#####X# #"###""""""" ##??????????????? | | """""" " "" ##???########### | | "" """ " #####"""""""""# | | " " " """ """" | | # % "" " | | ### % " "" | | ??## % " | | ???## % " | | ????##" @ | | ?????#""" """""" | | ????##" ######""" | | ????#"" ""##????#####""" | | ????#""" """##?????????##""" | | ???#""" """##???????????#"""" | | ???#""" ""#???????????##"" | | ???#"" ########??####"""" | | ???#""" ## ####""" | | ???#"" """" | | ???##"" | | ????#"""" | | ????## " | | ?????#" " "" " | | ?????#"""" ""## ##""" " " ""#" | | ?????#"" ""#### ######""" """##"" " | | ?????#" """"##??# #????###""""####### | | ?????#""" """#???# #??????######?????? | | ?????## ""##??#! "????????????????? | | ??????#"" """##???#" !#??????????????? | | ??????##""" ##????#" "#??????????????? | | ???????##"""" ##?????#!!""!"#??????????????? | | ??????????# #??????########??????????????? | | ???????????#### ##????????????????????????????? | | ??????????????## #?????????????????????????????? | +----------------------------------------------------+ Best States ------------- Heat Dissipation 42 Energy Generation 19 Energy Capacity 310 Matter Stores 300 Matter Capacity 300 Sight Range 16 Robot Scan Range 14 Terrain Scan Density 10 Armor Coverage 225 Evasion (%) 55 Targeting Accuracy 8 Recoil Reduction 3 Item Schematics ----------------- ECM Suite | -10/Materials | Hacked Robot Schematics ------------------ None Fabricated ------------ Nothing Alien Tech Used ----------------- None Achievements -------------- None Challenges ------------ None Game ------ Seed HypercooledEnhancedComputer Manual? 0 Play Time 00:45:29 Cumulative 169.1 hours Start 2024.09.06 @ 01:06:09 End 2024.09.07 @ 00:07:54 Sessions 3 Manual Loads 0 Difficulty Rogue Special Mode None Game No. 86 Rogue 84 Adventurer 0 Explorer 2 Win Type - Total 10 Types 10/0/0/0/0/0/0/0/0 Lore% 59 Gallery% 72 Achievement% 57 Wizard Run 0 Options --------- Layout 0 ASCII 0 Keyboard 1 Movement Numpad Keybinds 0 Fullscreen 1 Font 24/Smallcaps Map View 76x50 Zoom Use 0% Tactical HUD 1 Map Filters NONE Filters NONE Steam 1 RUN: 78af0c06-7d3d-463f-b666-b90093b8345b